bitfinex-derivatives/quotes_SOLF0:USTF0_20250719
["timestamp","ask_amount","ask_price","bid_price","bid_amount"]
[1752888608805,3.22,176.44,176.41,3.17]
[1752888609005,3.22,176.41,176.4,3.17]
[1752888609807,3.22,176.41,176.33,2.16516476]
[1752888610007,3.22,176.38,176.37,3.17]
[1752888612104,3.22,176.38,176.31,106.76812442]
[1752888612408,5.38516476,176.34,176.33,3.17]
[1752888612610,5.38516476,176.34,176.28,3.17]
[1752888612906,3.22,176.31,176.2,3.17]
[1752888613107,5.38516476,176.3,176.26,5.6692]
[1752888613304,3.22,176.29,176.28,3.17]
[1752888615216,3.22,176.28,176.27,3.17]
[1752888615418,2.16516476,176.28,176.27,3.17]
[1752888616316,3.22,176.26,176.24,3.17]
[1752888616616,3.22,176.27,176.24,3.17]
[1752888616813,2.16516476,176.28,176.24,3.17]
[1752888617016,5.38516476,176.28,176.24,3.17]
[1752888617613,3.22,176.27,176.26,3.17]
[1752888618017,5.38516476,176.28,176.27,3.17]
[1752888619115,3.22,176.27,176.21,3.17]
[1752888619419,3.22,176.22,176.18,3.17]
[1752888619619,3.22,176.22,176.21,3.17]
[1752888619920,5.38516476,176.23,176.22,3.17]
[1752888620418,2.16516476,176.24,176.22,3.17]
[1752888620817,2.16516476,176.26,176.24,5.6698]
[1752888621018,2.16516476,176.26,176.25,3.17]
[1752888621316,5.38516476,176.26,176.25,3.17]
[1752888621614,2.16516476,176.26,176.25,3.17]
[1752888622520,5.38516476,176.26,176.25,3.17]
[1752888622720,3.22,176.25,176.24,3.17]
[1752888623225,3.22,176.24,176.23,3.17]
[1752888623522,5.38516476,176.24,176.23,3.17]
[1752888624020,2.16516476,176.24,176.23,3.17]
[1752888624220,2.16516476,176.26,176.23,3.17]
[1752888624419,2.16516476,176.26,176.25,3.09]
[1752888624724,2.16516476,176.27,176.25,3.09]
[1752888625425,5.40516476,176.27,176.26,3.09]
[1752888625727,3.24,176.26,176.24,3.09]
[1752888625922,104.14,176.32,176.22,3.09]
[1752888625923,5.40516476,176.25,176.22,3.09]
[1752888626219,5.40516476,176.23,176.21,3.09]
[1752888626413,2.16516476,176.22,176.2,8.7611]
[1752888626618,5.40516476,176.22,176.21,3.09]
[1752888627019,2.16516476,176.22,176.21,3.09]
[1752888628824,3.24,176.23,176.21,3.09]
[1752888629026,5.40516476,176.23,176.21,3.09]
[1752888630525,3.24,176.23,176.22,3.09]
[1752888630722,5.40516476,176.23,176.22,3.09]
[1752888631529,2.16516476,176.23,176.22,3.09]
[1752888631821,2.16516476,176.27,176.22,3.09]
[1752888632427,3.24,176.27,176.22,3.09]
[1752888632627,2.16516476,176.27,176.22,3.09]
[1752888632830,2.16516476,176.29,176.22,2.16516476]
[1752888633027,2.16516476,176.31,176.25,3.09]
[1752888633232,2.16516476,176.31,176.3,3.09]
[1752888634231,5.40516476,176.31,176.3,3.09]
[1752888634538,5.40516476,176.31,176.28,5.6686]
[1752888634735,3.24,176.3,176.29,3.09]
[1752888635839,2.16516476,176.31,176.29,3.09]
[1752888636045,5.40516476,176.31,176.3,3.09]
[1752888636736,2.16516476,176.31,176.3,8.7581]
[1752888636938,5.40516476,176.35,176.28,3.09]
[1752888637141,2.16516476,176.35,176.3,3.09]
[1752888637535,2.16516476,176.37,176.31,3.09]
[1752888637838,2.16516476,176.37,176.31,5.25516476]
[1752888638141,2.16516476,176.37,176.36,3.09]
[1752888638344,5.40516476,176.37,176.36,3.09]
[1752888639142,2.16516476,176.37,176.36,3.09]
[1752888639842,5.40516476,176.37,176.36,3.09]
[1752888640241,3.24,176.36,176.29,3.09]
[1752888640436,5.40516476,176.34,176.29,3.09]
[1752888640843,2.16516476,176.35,176.32,3.09]
[1752888641037,3.24,176.36,176.32,3.09]
[1752888641235,5.40516476,176.37,176.32,3.09]
[1752888641439,5.40516476,176.37,176.34,5.6668]
[1752888641646,5.40516476,176.37,176.36,3.09]
[1752888641845,2.16516476,176.37,176.36,3.09]
[1752888642947,2.16516476,176.4,176.36,3.09]
[1752888643945,3.24,176.37,176.32,3.09]
[1752888644140,5.40516476,176.36,176.32,3.09]
[1752888644342,2.16516476,176.36,176.3,3.09]
[1752888644644,3.24,176.34,176.3,3.09]
[1752888645247,2.16516476,176.36,176.3,3.09]
[1752888645444,5.40516476,176.36,176.3,3.09]
[1752888645840,5.40516476,176.36,176.33,5.6669]
[1752888646044,5.40516476,176.36,176.34,3.09]
[1752888646452,3.24,176.35,176.34,3.09]
[1752888647653,3.24,176.35,176.33,3.09]
[1752888647846,5.40516476,176.36,176.34,3.09]
[1752888648150,5.40516476,176.36,176.35,3.09]
[1752888649950,5.40516476,176.36,176.29,3.09]
[1752888650147,3.24,176.35,176.29,3.09]
[1752888651351,3.24,176.35,176.33,5.6671]
[1752888651648,2.16516476,176.37,176.34,3.09]
[1752888652452,5.40516476,176.37,176.34,5.6666]
[1752888652647,5.40516476,176.37,176.36,3.09]
[1752888660458,2.16516476,176.37,176.36,3.09]
[1752888661556,3.29,176.41,176.36,3.09]
[1752888661757,3.29,176.43,176.36,3.09]
[1752888661963,5.45516476,176.42,176.36,3.09]
[1752888662155,5.45516476,176.42,176.38,5.6652]
[1752888662459,3.29,176.41,176.4,3.17]
[1752888662656,3.29,176.41,176.37,3.17]
[1752888662852,3.29,176.38,176.35,3.17]
[1752888663057,104.06,176.4,176.35,3.17]
[1752888663058,2.16516476,176.37,176.35,3.17]
[1752888663254,2.16516476,176.37,176.35,8.8363]
[1752888663454,2.16516476,176.37,176.31,2.16516476]
[1752888663455,2.16516476,176.39,176.32,3.17]
[1752888663959,2.16516476,176.39,176.37,3.17]
[1752888664664,5.45516476,176.39,176.32,2.16516476]
[1752888664862,5.45516476,176.39,176.38,3.17]
[1752888665163,2.16516476,176.39,176.38,3.17]
[1752888665563,2.16516476,176.41,176.34,2.16516476]
[1752888665863,3.29,176.4,176.35,3.17]
[1752888666364,2.16516476,176.41,176.35,3.17]
[1752888667568,106.22516476,176.43,176.37,3.17]
[1752888667768,106.22516476,176.43,176.41,5.6643]
[1752888668067,106.22516476,176.43,176.42,3.17]
[1752888668367,3.29,176.46,176.39,3.17]
[1752888668560,2.16516476,176.46,176.41,3.17]
[1752888668957,3.29,176.44,176.41,5.6643]
[1752888669166,3.29,176.44,176.43,3.17]
[1752888669967,5.45516476,176.44,176.43,3.17]
[1752888672175,3.29,176.43,176.35,3.17]
[1752888672474,5.45516476,176.39,176.35,3.17]
[1752888672670,5.45516476,176.4,176.35,3.17]
[1752888673273,2.16516476,176.4,176.39,3.17]
[1752888674769,3.29,176.39,176.38,3.17]
[1752888675869,3.29,176.39,176.36,3.17]
[1752888676079,2.16516476,176.38,176.36,3.17]
[1752888676272,3.29,176.39,176.36,3.17]
[1752888676571,2.16516476,176.38,176.36,3.17]
[1752888676778,2.16516476,176.4,176.37,3.17]
[1752888677979,2.16516476,176.4,176.37,5.6656]
[1752888678175,2.16516476,176.4,176.38,3.17]
[1752888679281,2.16516476,176.4,176.33,4.71252213]
[1752888679282,8.9552,176.39,176.33,4.71252213]
[1752888679484,3.29,176.36,176.35,3.17]
[1752888680379,2.16516476,176.37,176.35,3.17]
[1752888680886,2.16516476,176.37,176.36,3.17]
[1752888681073,5.45516476,176.37,176.36,3.17]
[1752888681474,2.16516476,176.37,176.33,5.6671]
[1752888681674,2.16516476,176.37,176.35,3.17]
[1752888682374,2.16516476,176.38,176.35,3.17]
[1752888682780,5.45516476,176.38,176.36,3.17]
[1752888683082,3.29,176.37,176.36,3.17]
[1752888683278,2.16516476,176.38,176.35,5.6665]
[1752888683582,2.16516476,176.38,176.36,3.17]
[1752888684185,5.30516476,176.38,176.35,5.6665]
[1752888684479,3.14,176.37,176.36,3.09]
[1752888686787,2.16516476,176.38,176.34,8.7567]
[1752888686990,2.16516476,176.38,176.35,3.09]
[1752888688186,7.83076476,176.38,176.35,3.09]
[1752888688386,2.16516476,176.36,176.35,3.09]
[1752888690388,2.16516476,176.36,176.35,8.7565]
[1752888690592,2.16516476,176.38,176.36,3.09]
[1752888690892,5.30516476,176.38,176.34,5.6667]
[1752888691191,5.30516476,176.38,176.35,3.09]
[1752888691692,2.16516476,176.39,176.35,3.09]
[1752888692291,2.16516476,176.39,176.37,3.09]
[1752888692989,2.16516476,176.39,176.37,8.7556]
[1752888693192,2.16516476,176.39,176.38,3.09]
[1752888693792,5.6649,176.4,176.38,3.09]
[1752888693992,2.16516476,176.39,176.38,3.09]
[1752888694188,2.16516476,176.39,176.37,5.6656]
[1752888694385,2.16516476,176.39,176.36,5.6661]
[1752888694589,10.97036476,176.39,176.34,4.76618696]
[1752888694894,5.30516476,176.39,176.35,3.09]
[1752888695693,5.30516476,176.39,176.34,4.76618696]
[1752888695694,5.30516476,176.39,176.37,3.09]
[1752888695893,5.30516476,176.39,176.38,3.09]
[1752888697394,5.30526672,176.39,176.38,3.09]
[1752888698195,3.14,176.38,176.37,3.09]
[1752888698593,3.14,176.38,176.33,4.76618696]
[1752888698594,3.14,176.38,176.34,5.6665]
[1752888698796,5.30526672,176.37,176.36,3.09]
[1752888700399,83.95493318,176.47,176.36,3.09]
[1752888700603,2.16526672,176.41,176.37,3.09]
[1752888700805,2.16526672,176.41,176.39,5.6649]
[1752888700994,2.16526672,176.41,176.4,3.09]
[1752888701397,5.30526672,176.41,176.4,3.09]
[1752888702400,5.30473948,176.41,176.4,3.09]
[1752888704400,2.16473948,176.41,176.4,3.09]
[1752888705200,5.30473948,176.41,176.4,3.09]
[1752888706003,3.14,176.4,176.39,3.09]
[1752888706201,3.14,176.4,176.36,4.76618696]
[1752888706503,5.30473948,176.38,176.37,3.09]
[1752888706704,2.16473948,176.38,176.37,3.09]
[1752888707001,2.16473948,176.4,176.34,4.76618696]
[1752888707202,2.16473948,176.4,176.36,3.09]
[1752888707504,2.16473948,176.4,176.37,3.09]
[1752888708199,2.16473948,176.4,176.39,3.09]
[1752888708904,5.30473948,176.4,176.39,3.09]
[1752888709604,2.16473948,176.4,176.39,3.09]
[1752888710305,10.96963948,176.4,176.39,3.09]
[1752888710606,3.14,176.38,176.34,4.76618696]
[1752888710804,5.30473948,176.38,176.37,3.09]
[1752888711906,10.97023948,176.38,176.34,5.6667]
[1752888712108,10.97023948,176.38,176.36,3.09]
[1752888712109,3.14,176.37,176.36,3.09]
[1752888712305,5.30473948,176.38,176.37,3.09]
[1752888712505,2.16473948,176.38,176.37,3.09]
[1752888714110,5.30473948,176.38,176.37,3.09]
[1752888714712,2.16473948,176.38,176.37,3.09]
[1752888715112,5.23473948,176.38,176.37,3.09]
[1752888716013,2.16473948,176.38,176.37,3.09]
[1752888717216,10.90023948,176.38,176.37,3.09]
[1752888717919,3.07,176.36,176.34,8.6868]
[1752888718123,3.07,176.36,176.32,4.76618696]
[1752888718124,5.23473948,176.36,176.35,3.02]
[1752888719212,10.90093948,176.36,176.32,5.6674]
[1752888719420,5.23473948,176.34,176.33,3.02]
[1752888720116,2.16473948,176.34,176.33,3.02]
[1752888720318,2.16473948,176.36,176.33,3.02]
[1752888720812,3.07,176.35,176.34,3.02]
[1752888721019,3.07,176.35,176.3,4.76618696]
[1752888721215,3.07,176.33,176.31,3.02]
[1752888721619,5.23473948,176.32,176.31,3.02]
[1752888721825,10.90223948,176.32,176.31,3.02]
[1752888722122,3.07,176.31,176.28,3.02]
[1752888722422,5.23473948,176.29,176.28,3.02]
[1752888722722,104.0,176.38,176.28,3.02]
[1752888722723,3.07,176.38,176.29,3.02]
[1752888723019,2.16726006,176.37,176.33,3.02]
[1752888723222,2.16614703,176.34,176.3,4.76618696]
[1752888723522,2.16614703,176.34,176.32,5.6675]
[1752888723718,5.23614703,176.36,176.33,3.02]
[1752888725224,5.23614703,176.36,176.33,8.6871]
[1752888725423,5.23614703,176.36,176.34,3.02]
[1752888725827,5.23614703,176.36,176.35,3.02]
[1752888729327,10.90234703,176.36,176.35,3.02]
[1752888730629,5.6659,176.37,176.35,3.02]
[1752888730829,2.16614703,176.36,176.35,3.02]
[1752888732031,7.83234703,176.36,176.35,3.02]
[1752888732231,10.90234703,176.36,176.35,3.02]
[1752888737437,3.07,176.35,176.29,3.02]
[1752888737633,5.23704793,176.3,176.25,4.76618696]
[1752888737840,5.23704793,176.3,176.22,2.16704793]
[1752888737841,5.23704793,176.28,176.27,3.02]
[1752888738030,10.90574793,176.28,176.27,3.02]
[1752888738638,10.90668384,176.28,176.27,3.02]
[1752888740236,5.6691,176.27,176.2,385.68618696]
[1752888740430,5.23798384,176.25,176.21,3.02]
[1752888740635,3.07,176.24,176.21,3.02]
[1752888741131,2.16798384,176.23,176.21,3.02]
[1752888741336,3.07,176.22,176.18,3.02]
[1752888741537,5.23798384,176.23,176.18,3.02]
[1752888741736,5.23798384,176.23,176.2,3.02]
[1752888742041,3.07,176.22,176.21,3.02]
[1752888743030,2.16798384,176.23,176.21,3.02]
[1752888743236,5.23798384,176.23,176.22,3.02]
[1752888744039,2.16798384,176.23,176.22,3.02]
[1752888746644,5.34798384,176.23,176.22,3.02]
[1752888747344,3.18,176.22,176.2,3.1]
[1752888747639,2.16798384,176.23,176.21,3.1]
[1752888747838,2.16798384,176.25,176.21,3.1]
[1752888748245,2.16798384,176.25,176.23,3.1]
[1752888748439,5.34798384,176.25,176.22,5.6704]
[1752888748636,5.34798384,176.25,176.23,3.1]
[1752888749146,5.34798384,176.25,176.24,3.1]
[1752888749546,3.18,176.24,176.14,2.16798384]
[1752888749746,5.34798384,176.22,176.18,5.6717]
[1752888749950,2.16798384,176.23,176.19,3.1]
[1752888750948,2.16798384,176.24,176.19,3.1]
[1752888751557,5.34798384,176.28,176.21,3.1]
[1752888751749,2.16798384,176.29,176.23,3.1]
[1752888752248,3.18,176.24,176.14,3.1]
[1752888752442,2.16798384,176.25,176.11,3.1]
[1752888752443,2.16798384,176.16,176.11,3.1]
[1752888752643,2.16798384,176.16,176.13,5.6733]
[1752888752842,2.16798384,176.16,176.14,3.1]
[1752888753044,2.16798384,176.16,176.1,2.16798384]
[1752888753256,5.34798384,176.16,176.15,3.1]
[1752888753447,2.16798384,176.16,176.11,3.1]
[1752888753749,3.18,176.14,176.12,3.1]
[1752888754341,3.18,176.13,176.06,383.18798384]
[1752888754550,3.18,176.11,176.1,3.1]
[1752888754942,2.16798384,176.12,176.1,3.1]
[1752888755145,2.16798384,176.12,176.07,3.1]
[1752888755340,3.18,176.11,176.07,3.1]
[1752888755549,3.18,176.11,176.1,3.1]
[1752888755946,5.34798384,176.12,176.11,3.1]
[1752888757759,3.18,176.11,176.1,3.1]
[1752888757956,2.16798384,176.12,176.1,3.1]
[1752888757957,2.16798384,176.12,176.1,8.7745]
[1752888758154,2.16798384,176.19,176.12,3.1]
[1752888758155,2.16798384,176.14,176.12,3.1]
[1752888758457,2.16798384,176.14,176.08,3.1]
[1752888758860,5.34798384,176.14,176.12,3.1]
[1752888759050,5.34798384,176.14,176.13,3.1]
[1752888761061,5.34798384,176.17,176.13,3.1]
[1752888761664,2.16798384,176.2,176.16,3.1]
[1752888761866,2.16798384,176.22,176.16,3.1]
[1752888762158,2.16798384,176.22,176.21,3.1]
[1752888763262,5.34798384,176.22,176.21,3.1]
[1752888763458,5.34798384,176.22,176.19,8.7716]
[1752888763667,2.16798384,176.22,176.21,3.1]
[1752888763965,5.34798384,176.24,176.22,3.1]
[1752888764258,5.34798384,176.26,176.24,3.1]
[1752888764462,5.34798384,176.26,176.25,3.1]
[1752888764762,5.34798384,176.26,176.2,3.1]
[1752888765064,3.18,176.24,176.2,3.1]
[1752888765465,5.34798384,176.26,176.22,3.1]
[1752888765662,2.16798384,176.26,176.22,3.1]
[1752888765862,3.18,176.25,176.23,3.1]
[1752888766059,3.18,176.25,176.24,3.1]
[1752888769465,5.34798384,176.26,176.23,5.6703]
[1752888769667,2.16798384,176.26,176.21,3.1]
[1752888769962,2.16798384,176.24,176.17,2.16798384]
[1752888770166,3.18,176.23,176.18,3.1]
[1752888770565,3.18,176.23,176.2,3.1]
[1752888771764,5.34798384,176.26,176.2,3.1]
[1752888772565,5.34798384,176.28,176.22,3.1]
[1752888772964,5.34798384,176.28,176.25,5.6697]
[1752888773158,5.34798384,176.28,176.27,3.1]
[1752888773960,5.34798384,176.28,176.21,2.16798384]
[1752888774166,3.18,176.23,176.22,3.1]
[1752888776370,3.18,176.23,176.2,3.24]
[1752888776664,3.03,176.22,176.21,3.24]
[1752888777768,5.19798384,176.22,176.21,3.24]
[1752888778068,5.19798384,176.22,176.19,5.6716]
[1752888778263,5.19798384,176.22,176.2,3.24]
[1752888778669,5.19798384,176.22,176.21,3.24]
[1752888779072,5.19798384,176.22,176.2,5.6711]
[1752888779272,2.16798384,176.22,176.21,3.24]
[1752888779675,5.19798384,176.22,176.21,3.24]
[1752888779875,2.16798384,176.22,176.21,3.24]
[1752888780378,2.16798384,176.24,176.21,3.24]
[1752888780573,5.19798384,176.26,176.21,3.24]
[1752888781074,5.19798384,176.26,176.25,3.24]
[1752888781271,3.03,176.25,176.24,3.24]
[1752888781474,2.16798384,176.26,176.23,3.24]
[1752888781676,3.03,176.25,176.24,3.24]
[1752888782473,2.16798384,176.26,176.24,3.24]
[1752888782771,5.19798384,176.28,176.25,3.24]
[1752888783571,5.23720408,176.28,176.25,3.27788136]
[1752888783978,3.03,176.27,176.26,3.24]
[1752888784177,3.03,176.26,176.25,3.27788136]
[1752888785082,5.23720408,176.28,176.26,3.24]
[1752888785280,3.03,176.27,176.26,3.24]
[1752888785579,3.03,176.27,176.25,0.03788136]
[1752888785777,5.19798384,176.26,176.25,0.03788136]
[1752888786677,5.19798384,176.26,176.25,3.27788136]
[1752888786678,2.16798384,176.26,176.25,3.27788136]
[1752888786882,2.16798384,176.27,176.25,3.27788136]
[1752888787179,2.16798384,176.27,176.26,3.24]
[1752888787378,5.19798384,176.27,176.26,3.24]
[1752888787579,3.03,176.27,176.26,3.24]
[1752888789880,3.03,176.27,176.25,0.03788136]
[1752888790081,2.16798384,176.26,176.25,0.03788136]
[1752888790289,5.19798384,176.26,176.25,0.03788136]
[1752888791383,5.19798384,176.26,176.25,3.27788136]
[1752888792377,2.16798384,176.26,176.25,3.27788136]
[1752888792581,2.20720408,176.28,176.25,3.27788136]
[1752888792981,5.23720408,176.28,176.25,3.27788136]
[1752888793186,3.03,176.27,176.26,3.24]
[1752888797284,3.03,176.26,176.25,3.27788136]
[1752888798184,3.03,176.27,176.26,3.24]
[1752888798487,2.20720408,176.28,176.26,3.24]
[1752888798783,5.23720408,176.28,176.25,3.27788136]
[1752888798988,3.03,176.27,176.26,3.24]
[1752888800389,2.20720408,176.28,176.26,3.24]
[1752888800584,5.23720408,176.28,176.25,5.70748136]
[1752888800789,5.23720408,176.28,176.27,3.24]
[1752888803890,3.03,176.27,176.26,3.24]
[1752888804190,3.03,176.27,176.25,0.03788136]
[1752888804386,5.35798384,176.26,176.25,0.03788136]
[1752888804592,5.35798384,176.26,176.25,3.31788136]
[1752888805488,2.16798384,176.27,176.25,3.31788136]
[1752888805692,0.03922024,176.28,176.25,3.31788136]
[1752888805892,0.03922024,176.28,176.26,5.6694]
[1752888806092,0.03922024,176.28,176.27,3.28]
[1752888806895,2.16767591,176.33,176.27,3.28]
[1752888807092,2.16767591,176.33,176.27,5.44767591]
[1752888807288,2.16767591,176.33,176.3,5.6679]
[1752888807494,3.19,176.36,176.28,3.28]
[1752888807686,3.19,176.36,176.29,2.16639351]
[1752888807882,104.06,176.37,176.34,5.6668]
[1752888808089,107.25,176.37,176.36,3.28]
[1752888808585,3.19,176.36,176.35,3.28]
[1752888808988,3.19,176.37,176.36,3.28]
[1752888809189,3.19,176.37,176.35,0.03751057]
[1752888809493,3.19,176.36,176.35,3.31751057]
[1752888810889,5.35639351,176.36,176.35,3.31751057]
[1752888811294,5.35639351,176.36,176.35,0.03751057]
[1752888811996,5.35639351,176.36,176.35,3.31751057]
[1752888813395,2.16639351,176.36,176.35,3.31751057]
[1752888813995,3.19,176.38,176.36,3.28]
[1752888813996,2.16639351,176.38,176.36,3.28]
[1752888814191,2.16639351,176.4,176.36,3.28]
[1752888814390,2.16639351,176.4,176.38,5.6653]
[1752888814595,2.16639351,176.4,176.39,3.28]
[1752888815193,5.35639351,176.4,176.39,3.28]
[1752888816503,5.35639351,176.4,176.37,3.28]
[1752888816700,3.19,176.39,176.36,5.6661]
[1752888816900,3.19,176.39,176.38,3.28]
[1752888817697,2.16639351,176.4,176.38,3.28]
[1752888817904,2.16639351,176.43,176.38,3.28]
[1752888818100,2.16639351,176.43,176.41,3.28]
[1752888818805,2.16639351,176.43,176.39,0.03699481]
[1752888818806,5.35639351,176.43,176.42,3.28]
[1752888820899,2.16639351,176.43,176.42,3.28]
[1752888821896,5.35639351,176.43,176.42,3.28]
[1752888822695,3.19,176.4,176.39,3.31699481]
[1752888822901,5.35639351,176.4,176.39,0.03699481]
[1752888823093,13.18768702,176.4,176.39,0.03699481]
[1752888823305,3.19,176.39,176.35,3.28]
[1752888823495,3.19,176.39,176.34,5.6668]
[1752888823496,5.6655,176.38,176.36,3.28]
[1752888823700,5.35639351,176.37,176.36,3.28]
[1752888824102,2.16639351,176.37,176.36,3.28]
[1752888824303,2.16639351,176.37,176.36,8.9462]
[1752888825400,2.16639351,176.39,176.35,0.03931247]
[1752888825603,2.16639351,176.39,176.38,3.28]
[1752888826204,2.16639351,176.4,176.38,3.28]
[1752888827203,2.16639351,176.4,176.39,3.28]
[1752888827407,3.19,176.39,176.37,3.28]
[1752888827609,5.35639351,176.38,176.37,3.28]
[1752888828011,2.16639351,176.38,176.37,3.28]
[1752888828507,2.16639351,176.38,176.37,8.9457]
[1752888835709,5.35639351,176.4,176.38,5.6652]
[1752888835908,2.16639351,176.4,176.39,3.08]
[1752888836711,5.37639351,176.4,176.39,3.08]
[1752888836912,0.04053275,176.41,176.39,8.7452]
[1752888837209,0.04053275,176.41,176.4,3.08]
[1752888837414,3.25053275,176.41,176.4,3.08]
[1752888838317,5.41692626,176.41,176.4,3.08]
[1752888840519,3.21,176.4,176.39,0.04069857]
[1752888840719,3.21,176.4,176.36,3.08]
[1752888840918,4.37331977,176.41,176.29,2.16639351]
[1752888840919,2.16639351,176.37,176.34,3.08]
[1752888841120,5.37639351,176.35,176.34,3.08]
[1752888841818,2.16639351,176.36,176.34,3.08]
[1752888842017,5.6665,176.35,176.28,3.08]
[1752888842210,2.16639351,176.3,176.28,3.08]
[1752888842413,2.16639351,176.3,176.24,385.8482141]
[1752888842619,3.21,176.32,176.29,3.08]
[1752888842818,103.98,176.37,176.3,3.08]
[1752888842819,2.20740071,176.31,176.3,3.08]
[1752888843322,2.16639351,176.31,176.3,3.08]
[1752888843821,2.16639351,176.31,176.3,8.7481]
[1752888844620,5.37639351,176.31,176.3,3.08]
[1752888845324,5.37639351,176.31,176.25,3.08]
[1752888845525,2.16639351,176.29,176.25,3.08]
[1752888845721,5.37639351,176.29,176.25,3.08]
[1752888845931,2.16639351,176.29,176.26,5.6693]
[1752888846127,2.16639351,176.29,176.27,3.08]
[1752888846517,2.16639351,176.29,176.27,8.749]
[1752888846723,2.16639351,176.29,176.28,3.08]
[1752888847628,2.16639351,176.29,176.28,8.7487]
[1752888848830,2.16639351,176.31,176.29,5.6684]
[1752888849033,2.16639351,176.31,176.3,3.08]
[1752888851725,5.37639351,176.31,176.3,3.08]
[1752888854633,2.16639351,176.31,176.3,3.08]
[1752888856033,5.37639351,176.31,176.3,3.08]
[1752888857428,2.16639351,176.31,176.3,3.08]
[1752888858735,5.37639351,176.31,176.28,5.6687]
[1752888858933,2.16639351,176.29,176.24,3.08]
[1752888859429,2.16639351,176.29,176.28,3.08]
[1752888859637,5.37639351,176.29,176.28,3.08]
[1752888859837,2.16639351,176.29,176.28,3.08]
[1752888861542,0.03672692,176.3,176.28,8.7487]
[1752888861741,0.03672692,176.3,176.29,3.08]
[1752888862240,0.03672692,176.3,176.29,8.7484]
[1752888865741,0.03672692,176.3,176.29,3.08]
[1752888865742,5.23312043,176.3,176.29,3.08]
[1752888865950,2.20312043,176.3,176.24,3.18]
[1752888866142,2.20312043,176.3,176.25,3.18]
[1752888866143,5.19639351,176.26,176.25,3.18]
[1752888866446,3.03,176.25,176.24,3.18]
[1752888866647,5.19639351,176.25,176.24,3.18]
[1752888869147,3.03,176.25,176.24,3.18]
[1752888869350,5.19639351,176.25,176.24,3.18]
[1752888870049,2.16639351,176.25,176.24,3.18]
[1752888870444,5.19639351,176.25,176.24,3.18]
[1752888871344,2.16639351,176.25,176.22,3.18]
[1752888871551,5.19639351,176.23,176.22,3.18]
[1752888872546,2.16639351,176.23,176.22,3.18]
[1752888872841,5.19639351,176.25,176.22,3.18]
[1752888873053,5.19639351,176.25,176.23,5.6701]
[1752888873054,2.16639351,176.25,176.23,5.6701]
[1752888873251,2.16639351,176.25,176.24,3.18]
[1752888873441,0.04096505,176.26,176.24,3.18]
[1752888873845,0.04096505,176.26,176.25,8.8497]
[1752888880946,3.07096505,176.26,176.24,5.6699]
[1752888881148,3.03,176.25,176.24,8.8499]
[1752888882258,3.03,176.25,176.24,3.18]
[1752888882455,3.03,176.25,176.23,5.6703]
[1752888882456,3.03,176.25,176.22,3.18]
[1752888882755,3.03,176.24,176.23,3.18]
[1752888883759,3.07096505,176.26,176.23,3.18]
[1752888884057,3.07096505,176.26,176.25,3.18]
[1752888884256,0.04096505,176.26,176.25,3.18]
[1752888884759,0.04096505,176.26,176.25,8.8497]
[1752888887757,2.16639351,176.33,176.25,3.18]
[1752888887955,10.86309351,176.35,176.28,3.18]
[1752888888351,3.03,176.34,176.32,3.18]
[1752888888565,3.03,176.34,176.33,3.18]
[1752888888955,8.6968,176.34,176.33,3.18]
[1752888889156,8.6968,176.34,176.28,3.18]